[Event "Titled Tuesday Blitz January 04 2022"]
[White "Baskin, Robert"]
[Black "Martinez Alcantara, Jose Eduardo"]
[WhiteFideId "24662402"]
[BlackFideId "3805662"]
[WhiteElo "2488"]
[BlackElo "2690"]
[Result "0-1"]
[Round "02"]
[TimeControl "180+1"]
[Date "2022.01.04"]
[WhiteClock "0:00:01"]
[BlackClock "0:00:08"]

1. e4 {[%clk 0:02:59]}  c5 {[%clk 0:02:58]} 2. Nf3 {[%clk 0:02:59]}  d6 {[%clk 0:02:58]} 3. d4 {[%clk 0:03:00]}  cxd4 {[%clk 0:02:59]} 4. Nxd4 {[%clk 0:03:00]}  Nf6 {[%clk 0:02:59]} 5. Nc3 {[%clk 0:03:01]}  a6 {[%clk 0:03:00]} 6. Be3 {[%clk 0:03:01]}  e5 {[%clk 0:03:00]} 7. Nb3 {[%clk 0:03:02]}  Be7 {[%clk 0:03:00]} 8. f3 {[%clk 0:03:02]}  Be6 {[%clk 0:03:00]} 9. Qd2 {[%clk 0:03:02]}  h5 {[%clk 0:03:00]} 10. Nd5 {[%clk 0:02:59]}  Bxd5 {[%clk 0:02:40]} 11. exd5 {[%clk 0:02:56]}  Nbd7 {[%clk 0:02:40]} 12. O-O-O {[%clk 0:02:56]}  Qc7 {[%clk 0:02:39]} 13. Kb1 {[%clk 0:02:22]}  Nb6 {[%clk 0:02:36]} 14. Qa5 {[%clk 0:02:18]}  Rc8 {[%clk 0:02:33]} 15. Bxa6 {[%clk 0:01:43]}  bxa6 {[%clk 0:02:14]} 16. Qxb6 {[%clk 0:01:40]}  Qxc2+ {[%clk 0:02:13]} 17. Ka1 {[%clk 0:01:40]}  O-O {[%clk 0:02:07]} 18. Rd2 {[%clk 0:01:25]}  Qc4 {[%clk 0:01:59]} 19. Rhd1 {[%clk 0:01:09]}  Nd7 {[%clk 0:01:34]} 20. Qa5 {[%clk 0:01:01]}  Rc7 {[%clk 0:01:09]} 21. Rf2 {[%clk 0:00:52]}  Rfc8 {[%clk 0:01:07]} 22. Qd2 {[%clk 0:00:38]}  Qa4 {[%clk 0:00:55]} 23. Qa5 {[%clk 0:00:24]}  Qc4 {[%clk 0:00:55]} 24. Qd2 {[%clk 0:00:23]}  Qb5 {[%clk 0:00:56]} 25. Qd3 {[%clk 0:00:12]}  Qa4 {[%clk 0:00:54]} 26. Rc1 {[%clk 0:00:09]}  Rxc1+ {[%clk 0:00:52]} 27. Bxc1 {[%clk 0:00:09]}  Nf6 {[%clk 0:00:43]} 28. Bg5 {[%clk 0:00:05]}  Qb4 {[%clk 0:00:20]} 29. Rc2 {[%clk 0:00:04]}  Rxc2 {[%clk 0:00:13]} 30. Qxc2 {[%clk 0:00:05]}  Qe1+ {[%clk 0:00:13]} 31. Nc1 {[%clk 0:00:03]}  Nxd5 {[%clk 0:00:09]} 32. Qc8+ {[%clk 0:00:02]}  Bf8 {[%clk 0:00:09]} 33. a3 {[%clk 0:00:01]}  Qf1 {[%clk 0:00:08]} 0-1


[Site "https://www.chess.com"]

[Event "Titled Tuesday Blitz January 04 2022"]
[White "Firat, Burak"]
[Black "Narayanan.S.L"]
[WhiteFideId "6305881"]
[BlackFideId "5058422"]
[WhiteElo "2419"]
[BlackElo "2494"]
[Result "0-1"]
[Round "02"]
[TimeControl "180+1"]
[Date "2022.01.04"]
[WhiteClock "0:00:11"]
[BlackClock "0:00:35"]

1. Nf3 {[%clk 0:03:00]}  Nc6 {[%clk 0:02:58]} 2. d4 {[%clk 0:03:00]}  d5 {[%clk 0:02:59]} 3. c4 {[%clk 0:03:00]}  e5 {[%clk 0:02:58]} 4. dxe5 {[%clk 0:03:00]}  d4 {[%clk 0:02:58]} 5. Nbd2 {[%clk 0:02:59]}  Nge7 {[%clk 0:02:57]} 6. Nb3 {[%clk 0:02:50]}  Nf5 {[%clk 0:02:57]} 7. g3 {[%clk 0:02:41]}  Be6 {[%clk 0:02:54]} 8. Bg5 {[%clk 0:02:28]}  Bb4+ {[%clk 0:02:51]} 9. Nbd2 {[%clk 0:02:12]}  Be7 {[%clk 0:02:23]} 10. Bxe7 {[%clk 0:02:09]}  Qxe7 {[%clk 0:02:24]} 11. Bg2 {[%clk 0:02:05]}  O-O {[%clk 0:02:24]} 12. O-O {[%clk 0:02:04]}  Rad8 {[%clk 0:02:25]} 13. a3 {[%clk 0:02:01]}  Bc8 {[%clk 0:02:24]} 14. b4 {[%clk 0:01:56]}  Nxe5 {[%clk 0:02:23]} 15. Nxe5 {[%clk 0:01:56]}  Qxe5 {[%clk 0:02:24]} 16. Nf3 {[%clk 0:01:57]}  Qe7 {[%clk 0:02:24]} 17. c5 {[%clk 0:01:50]}  Rfe8 {[%clk 0:02:24]} 18. Re1 {[%clk 0:01:50]}  c6 {[%clk 0:02:23]} 19. Qa4 {[%clk 0:01:48]}  a6 {[%clk 0:02:23]} 20. Rad1 {[%clk 0:01:48]}  h6 {[%clk 0:02:19]} 21. Qc2 {[%clk 0:01:37]}  Qf6 {[%clk 0:02:13]} 22. Rd2 {[%clk 0:01:35]}  Re7 {[%clk 0:00:54]} 23. e4 {[%clk 0:01:28]}  Rde8 {[%clk 0:00:54]} 24. Ree2 {[%clk 0:01:09]}  Rd8 {[%clk 0:00:38]} 25. exf5 {[%clk 0:00:56]}  Rxe2 {[%clk 0:00:38]} 26. Rxe2 {[%clk 0:00:51]}  d3 {[%clk 0:00:38]} 27. Qd2 {[%clk 0:00:49]}  dxe2 {[%clk 0:00:39]} 28. Qxe2 {[%clk 0:00:50]}  Bxf5 {[%clk 0:00:39]} 29. h3 {[%clk 0:00:47]}  Be6 {[%clk 0:00:38]} 30. Ne5 {[%clk 0:00:46]}  Bd5 {[%clk 0:00:38]} 31. Bxd5 {[%clk 0:00:44]}  Rxd5 {[%clk 0:00:38]} 32. Nc4 {[%clk 0:00:44]}  Qe6 {[%clk 0:00:36]} 33. Qxe6 {[%clk 0:00:40]}  fxe6 {[%clk 0:00:37]} 34. Nd6 {[%clk 0:00:41]}  b5 {[%clk 0:00:37]} 35. Nc8 {[%clk 0:00:37]}  Rd7 {[%clk 0:00:34]} 36. Kf1 {[%clk 0:00:34]}  e5 {[%clk 0:00:34]} 37. Ke2 {[%clk 0:00:33]}  Kf7 {[%clk 0:00:35]} 38. Ke3 {[%clk 0:00:32]}  Ke6 {[%clk 0:00:35]} 39. Nd6 {[%clk 0:00:26]}  Rxd6 {[%clk 0:00:32]} 40. cxd6 {[%clk 0:00:27]}  Kxd6 {[%clk 0:00:32]} 41. Ke4 {[%clk 0:00:28]}  c5 {[%clk 0:00:33]} 42. bxc5+ {[%clk 0:00:24]}  Kxc5 {[%clk 0:00:34]} 43. Kxe5 {[%clk 0:00:24]}  a5 {[%clk 0:00:34]} 44. Ke4 {[%clk 0:00:14]}  Kc4 {[%clk 0:00:34]} 45. Ke3 {[%clk 0:00:11]}  Kc3 {[%clk 0:00:35]} 0-1


[Site "https://www.chess.com"]

[Event "Titled Tuesday Blitz January 04 2022"]
[White "Hakobyan, Aram"]
[Black "Hjartarson, Johann"]
[WhiteFideId "13306677"]
[BlackFideId "2300044"]
[WhiteElo "2557"]
[BlackElo "2484"]
[Result "1-0"]
[Round "02"]
[TimeControl "180+1"]
[Date "2022.01.04"]
[WhiteClock "0:00:25"]
[BlackClock "0:00:30"]

1. d4 {[%clk 0:03:00]}  Nf6 {[%clk 0:02:59]} 2. c4 {[%clk 0:02:58]}  g6 {[%clk 0:02:59]} 3. Nc3 {[%clk 0:02:55]}  Bg7 {[%clk 0:02:59]} 4. Bg5 {[%clk 0:02:53]}  O-O {[%clk 0:02:58]} 5. Nf3 {[%clk 0:02:53]}  d6 {[%clk 0:02:57]} 6. e3 {[%clk 0:02:53]}  c5 {[%clk 0:02:57]} 7. Be2 {[%clk 0:02:47]}  Nc6 {[%clk 0:02:55]} 8. d5 {[%clk 0:02:45]}  Na5 {[%clk 0:02:54]} 9. O-O {[%clk 0:02:41]}  h6 {[%clk 0:02:49]} 10. Bh4 {[%clk 0:02:41]}  g5 {[%clk 0:02:49]} 11. Bg3 {[%clk 0:02:42]}  Nh5 {[%clk 0:02:49]} 12. Qc2 {[%clk 0:02:41]}  Nxg3 {[%clk 0:02:46]} 13. hxg3 {[%clk 0:02:42]}  a6 {[%clk 0:02:40]} 14. Rab1 {[%clk 0:02:18]}  Rb8 {[%clk 0:02:34]} 15. a3 {[%clk 0:02:05]}  b6 {[%clk 0:02:22]} 16. b4 {[%clk 0:02:03]}  Nb7 {[%clk 0:02:22]} 17. Bd3 {[%clk 0:01:57]}  Bd7 {[%clk 0:02:19]} 18. Rfc1 {[%clk 0:01:56]}  cxb4 {[%clk 0:02:14]} 19. axb4 {[%clk 0:01:55]}  a5 {[%clk 0:02:14]} 20. Nd4 {[%clk 0:01:34]}  axb4 {[%clk 0:02:13]} 21. Rxb4 {[%clk 0:01:35]}  Nc5 {[%clk 0:02:13]} 22. Bh7+ {[%clk 0:01:36]}  Kh8 {[%clk 0:02:12]} 23. Bf5 {[%clk 0:01:37]}  e6 {[%clk 0:02:09]} 24. dxe6 {[%clk 0:01:18]}  fxe6 {[%clk 0:02:08]} 25. Bh3 {[%clk 0:01:19]}  e5 {[%clk 0:01:48]} 26. Nf5 {[%clk 0:00:51]}  e4 {[%clk 0:01:24]} 27. Nxg7 {[%clk 0:00:43]}  g4 {[%clk 0:01:22]} 28. Nh5 {[%clk 0:00:34]}  gxh3 {[%clk 0:01:21]} 29. Nf4 {[%clk 0:00:35]}  Qe8 {[%clk 0:01:06]} 30. Ncd5 {[%clk 0:00:35]}  hxg2 {[%clk 0:00:53]} 31. Qc3+ {[%clk 0:00:34]}  Kh7 {[%clk 0:00:53]} 32. Nf6+ {[%clk 0:00:32]}  Rxf6 {[%clk 0:00:52]} 33. Qxf6 {[%clk 0:00:33]}  Qf8 {[%clk 0:00:37]} 34. Qg6+ {[%clk 0:00:30]}  Kh8 {[%clk 0:00:36]} 35. Rd1 {[%clk 0:00:30]}  Ra8 {[%clk 0:00:30]} 36. Rbb1 {[%clk 0:00:25]} 1-0


[Site "https://www.chess.com"]

[Event "Titled Tuesday Blitz January 04 2022"]
[White "Horobetz, Graham"]
[Black "Albornoz Cabrera, Carlos Daniel"]
[WhiteFideId "2047322"]
[BlackFideId "3518736"]
[WhiteElo "2602"]
[BlackElo "2490"]
[Result "1/2-1/2"]
[Round "02"]
[TimeControl "180+1"]
[Date "2022.01.04"]
[WhiteClock "0:00:10"]
[BlackClock "0:00:14"]

1. e4 {[%clk 0:03:00]}  c6 {[%clk 0:02:58]} 2. d4 {[%clk 0:03:00]}  d5 {[%clk 0:02:58]} 3. Nc3 {[%clk 0:03:00]}  dxe4 {[%clk 0:02:58]} 4. Nxe4 {[%clk 0:03:01]}  Nf6 {[%clk 0:02:59]} 5. Nxf6+ {[%clk 0:03:02]}  gxf6 {[%clk 0:02:58]} 6. c3 {[%clk 0:03:02]}  Bf5 {[%clk 0:02:57]} 7. Nf3 {[%clk 0:03:03]}  e6 {[%clk 0:02:57]} 8. g3 {[%clk 0:03:03]}  Nd7 {[%clk 0:02:56]} 9. Bg2 {[%clk 0:03:04]}  Bd6 {[%clk 0:02:56]} 10. O-O {[%clk 0:03:03]}  Qc7 {[%clk 0:02:56]} 11. Re1 {[%clk 0:02:46]}  O-O-O {[%clk 0:02:55]} 12. Nh4 {[%clk 0:02:43]}  Bg6 {[%clk 0:02:55]} 13. c4 {[%clk 0:02:29]}  Kb8 {[%clk 0:02:46]} 14. Nxg6 {[%clk 0:02:06]}  hxg6 {[%clk 0:02:44]} 15. Be3 {[%clk 0:01:48]}  e5 {[%clk 0:02:39]} 16. dxe5 {[%clk 0:01:43]}  Bxe5 {[%clk 0:02:34]} 17. Qa4 {[%clk 0:01:34]}  Nb6 {[%clk 0:02:31]} 18. Qc2 {[%clk 0:01:34]}  Rd7 {[%clk 0:02:14]} 19. a4 {[%clk 0:01:34]}  Rhd8 {[%clk 0:02:05]} 20. a5 {[%clk 0:01:33]}  Nc8 {[%clk 0:02:05]} 21. a6 {[%clk 0:01:31]}  b6 {[%clk 0:02:05]} 22. Qe4 {[%clk 0:01:30]}  Ne7 {[%clk 0:02:01]} 23. c5 {[%clk 0:01:13]}  b5 {[%clk 0:01:52]} 24. h4 {[%clk 0:01:12]}  Nd5 {[%clk 0:01:50]} 25. Bd2 {[%clk 0:01:02]}  Ne7 {[%clk 0:01:38]} 26. Ba5 {[%clk 0:00:59]}  Qc8 {[%clk 0:01:33]} 27. Bxd8 {[%clk 0:00:59]}  Qxd8 {[%clk 0:01:34]} 28. Bf3 {[%clk 0:00:52]}  Bd4 {[%clk 0:01:21]} 29. Rad1 {[%clk 0:00:45]}  Bxc5 {[%clk 0:01:19]} 30. Rc1 {[%clk 0:00:34]}  Qb6 {[%clk 0:01:11]} 31. Rc2 {[%clk 0:00:34]}  Rd4 {[%clk 0:00:58]} 32. Qe2 {[%clk 0:00:19]}  Kc7 {[%clk 0:00:56]} 33. Rec1 {[%clk 0:00:19]}  Bd6 {[%clk 0:00:42]} 34. Qxe7+ {[%clk 0:00:14]}  Bxe7 {[%clk 0:00:40]} 35. Rxc6+ {[%clk 0:00:14]}  Qxc6 {[%clk 0:00:39]} 36. Rxc6+ {[%clk 0:00:15]}  Kd7 {[%clk 0:00:38]} 37. Rc2 {[%clk 0:00:15]}  b4 {[%clk 0:00:33]} 38. Kg2 {[%clk 0:00:12]}  Rd6 {[%clk 0:00:29]} 39. Bb7 {[%clk 0:00:10]}  Rb6 {[%clk 0:00:29]} 40. Rc4 {[%clk 0:00:10]}  Bd6 {[%clk 0:00:27]} 41. b3 {[%clk 0:00:09]}  Ke7 {[%clk 0:00:21]} 42. Kf3 {[%clk 0:00:09]}  Rb5 {[%clk 0:00:21]} 43. Ke4 {[%clk 0:00:08]}  Re5+ {[%clk 0:00:21]} 44. Kd3 {[%clk 0:00:09]}  Re1 {[%clk 0:00:18]} 45. Re4+ {[%clk 0:00:09]}  Rxe4 {[%clk 0:00:18]} 46. Kxe4 {[%clk 0:00:10]}  Bc5 {[%clk 0:00:19]} 47. Kf3 {[%clk 0:00:08]}  f5 {[%clk 0:00:18]} 48. Bc8 {[%clk 0:00:07]}  Kf6 {[%clk 0:00:18]} 49. Bb7 {[%clk 0:00:08]}  Ke5 {[%clk 0:00:18]} 50. Ke2 {[%clk 0:00:08]}  f4 {[%clk 0:00:18]} 51. Kf3 {[%clk 0:00:09]}  fxg3 {[%clk 0:00:17]} 52. fxg3 {[%clk 0:00:10]}  f6 {[%clk 0:00:18]} 53. g4 {[%clk 0:00:10]}  Bd4 {[%clk 0:00:15]} 54. h5 {[%clk 0:00:09]}  gxh5 {[%clk 0:00:14]} 55. gxh5 {[%clk 0:00:10]}  Kf5 {[%clk 0:00:15]} 56. Be4+ {[%clk 0:00:09]}  Kg5 {[%clk 0:00:15]} 57. Bg6 {[%clk 0:00:10]}  f5 {[%clk 0:00:15]} 58. Kg3 {[%clk 0:00:11]}  Bb2 {[%clk 0:00:15]} 59. Kf3 {[%clk 0:00:11]}  Bc1 {[%clk 0:00:15]} 60. Be8 {[%clk 0:00:12]}  Kf6 {[%clk 0:00:15]} 61. Bg6 {[%clk 0:00:11]}  Bh6 {[%clk 0:00:15]} 62. Be8 {[%clk 0:00:11]}  Ke5 {[%clk 0:00:15]} 63. Bb5 {[%clk 0:00:12]}  Kd4 {[%clk 0:00:15]} 64. Bc4 {[%clk 0:00:12]}  Kc5 {[%clk 0:00:15]} 65. Bf7 {[%clk 0:00:12]}  Kd4 {[%clk 0:00:14]} 66. Bc4 {[%clk 0:00:13]}  Ke5 {[%clk 0:00:12]} 67. Bf7 {[%clk 0:00:12]}  f4 {[%clk 0:00:12]} 68. Bc4 {[%clk 0:00:12]}  Kf5 {[%clk 0:00:12]} 69. Bf7 {[%clk 0:00:10]}  Kg5 {[%clk 0:00:13]} 70. Be8 {[%clk 0:00:10]}  Bf8 {[%clk 0:00:12]} 71. Bg6 {[%clk 0:00:11]}  Kf6 {[%clk 0:00:13]} 72. Be8 {[%clk 0:00:10]}  Bh6 {[%clk 0:00:13]} 73. Bg6 {[%clk 0:00:10]}  Ke5 {[%clk 0:00:13]} 74. Be8 {[%clk 0:00:11]}  Kd4 {[%clk 0:00:14]} 75. Bf7 {[%clk 0:00:11]}  Kc5 {[%clk 0:00:14]} 76. Bc4 {[%clk 0:00:11]}  Kb6 {[%clk 0:00:14]} 77. Ke4 {[%clk 0:00:11]}  Kc5 {[%clk 0:00:14]} 78. Be2 {[%clk 0:00:11]}  Kd6 {[%clk 0:00:14]} 79. Bc4 {[%clk 0:00:10]}  Ke7 {[%clk 0:00:14]} 80. Kf3 {[%clk 0:00:09]}  Kf6 {[%clk 0:00:14]} 81. Bd5 {[%clk 0:00:09]}  Kg5 {[%clk 0:00:14]} 82. Bf7 {[%clk 0:00:10]}  Bf8 {[%clk 0:00:14]} 83. Be8 {[%clk 0:00:10]}  Bd6 {[%clk 0:00:14]} 84. Bf7 {[%clk 0:00:10]}  Bc7 {[%clk 0:00:15]} 85. Be8 {[%clk 0:00:10]}  Bd6 {[%clk 0:00:14]} 86. Bg6 {[%clk 0:00:10]}  Bc7 {[%clk 0:00:14]} 87. Be8 {[%clk 0:00:10]}  Bd6 {[%clk 0:00:14]} 1/2-1/2


[Site "https://www.chess.com"]

[Event "Titled Tuesday Blitz January 04 2022"]
[White "Howell, David W L"]
[Black "Bellissimo, Joseph F."]
[WhiteFideId "410608"]
[BlackFideId "2609843"]
[WhiteElo "2559"]
[BlackElo "2061"]
[Result "1-0"]
[Round "02"]
[TimeControl "180+1"]
[Date "2022.01.04"]
[WhiteClock "0:01:40"]
[BlackClock "0:01:10"]

1. e4 {[%clk 0:03:00]}  e6 {[%clk 0:02:59]} 2. d4 {[%clk 0:02:59]}  d5 {[%clk 0:03:00]} 3. e5 {[%clk 0:02:55]}  c5 {[%clk 0:03:00]} 4. c3 {[%clk 0:02:55]}  Nc6 {[%clk 0:03:00]} 5. Nf3 {[%clk 0:02:55]}  Qb6 {[%clk 0:03:00]} 6. Be2 {[%clk 0:02:52]}  Nh6 {[%clk 0:02:57]} 7. Bxh6 {[%clk 0:02:51]}  Qxb2 {[%clk 0:02:54]} 8. Be3 {[%clk 0:02:45]}  Qxa1 {[%clk 0:02:53]} 9. Qc2 {[%clk 0:02:45]}  cxd4 {[%clk 0:02:46]} 10. Nxd4 {[%clk 0:02:45]}  Nxe5 {[%clk 0:02:16]} 11. Nb3 {[%clk 0:02:42]}  Qxb1+ {[%clk 0:02:11]} 12. Qxb1 {[%clk 0:02:42]}  Bd7 {[%clk 0:02:12]} 13. O-O {[%clk 0:02:41]}  Bd6 {[%clk 0:02:12]} 14. Nc5 {[%clk 0:02:38]}  Bc6 {[%clk 0:02:11]} 15. Nxb7 {[%clk 0:02:38]}  Bxb7 {[%clk 0:01:58]} 16. Qxb7 {[%clk 0:02:36]}  O-O {[%clk 0:01:59]} 17. Qa6 {[%clk 0:02:31]}  Bc7 {[%clk 0:01:57]} 18. Rb1 {[%clk 0:02:29]}  Rfc8 {[%clk 0:01:50]} 19. g3 {[%clk 0:02:25]}  Nd7 {[%clk 0:01:47]} 20. Rb7 {[%clk 0:02:22]}  Nb8 {[%clk 0:01:39]} 21. Qa4 {[%clk 0:02:08]}  Bd6 {[%clk 0:01:38]} 22. Bf4 {[%clk 0:01:53]}  e5 {[%clk 0:01:34]} 23. Bd2 {[%clk 0:01:48]}  Nc6 {[%clk 0:01:33]} 24. Bg4 {[%clk 0:01:48]}  Rcb8 {[%clk 0:01:18]} 25. Qxc6 {[%clk 0:01:45]}  Rxb7 {[%clk 0:01:18]} 26. Qxb7 {[%clk 0:01:46]}  Rb8 {[%clk 0:01:18]} 27. Qxa7 {[%clk 0:01:45]}  g6 {[%clk 0:01:17]} 28. Qd7 {[%clk 0:01:43]}  Bf8 {[%clk 0:01:16]} 29. Qxd5 {[%clk 0:01:43]}  h5 {[%clk 0:01:15]} 30. Be2 {[%clk 0:01:42]}  h4 {[%clk 0:01:15]} 31. Bc4 {[%clk 0:01:43]}  h3 {[%clk 0:01:14]} 32. Qxf7+ {[%clk 0:01:43]}  Kh8 {[%clk 0:01:14]} 33. Bb3 {[%clk 0:01:41]}  Bg7 {[%clk 0:01:12]} 34. Qxg6 {[%clk 0:01:40]}  Rd8 {[%clk 0:01:10]} 35. Qh5+ {[%clk 0:01:40]} 1-0


[Site "https://www.chess.com"]

[Event "Titled Tuesday Blitz January 04 2022"]
[White "Ibrahimli, Murad"]
[Black "Maltsevskaya, Aleksandra"]
[WhiteFideId "13410229"]
[BlackFideId "24174041"]
[WhiteElo "2109"]
[BlackElo "2283"]
[Result "1-0"]
[Round "02"]
[TimeControl "180+1"]
[Date "2022.01.04"]
[WhiteClock "0:00:36"]
[BlackClock "0:00:03"]

1. d4 {[%clk 0:03:00]}  Nf6 {[%clk 0:02:50]} 2. c4 {[%clk 0:02:59]}  b6 {[%clk 0:02:48]} 3. Nc3 {[%clk 0:02:58]}  Bb7 {[%clk 0:02:49]} 4. Qc2 {[%clk 0:02:57]}  d5 {[%clk 0:02:47]} 5. cxd5 {[%clk 0:02:58]}  Nxd5 {[%clk 0:02:48]} 6. Nf3 {[%clk 0:02:58]}  e6 {[%clk 0:02:47]} 7. e4 {[%clk 0:02:54]}  Nxc3 {[%clk 0:02:47]} 8. bxc3 {[%clk 0:02:55]}  Be7 {[%clk 0:02:48]} 9. Bb5+ {[%clk 0:02:53]}  c6 {[%clk 0:02:47]} 10. Bd3 {[%clk 0:02:54]}  O-O {[%clk 0:02:47]} 11. e5 {[%clk 0:02:53]}  g6 {[%clk 0:02:45]} 12. Be4 {[%clk 0:02:51]}  Qd7 {[%clk 0:02:39]} 13. Bh6 {[%clk 0:02:47]}  Rc8 {[%clk 0:02:38]} 14. Rd1 {[%clk 0:02:46]}  Na6 {[%clk 0:02:17]} 15. h4 {[%clk 0:02:45]}  c5 {[%clk 0:02:14]} 16. dxc5 {[%clk 0:02:32]}  Qc7 {[%clk 0:02:14]} 17. h5 {[%clk 0:01:59]}  Nxc5 {[%clk 0:02:03]} 18. Bxb7 {[%clk 0:01:57]}  Qxb7 {[%clk 0:02:04]} 19. hxg6 {[%clk 0:01:57]}  hxg6 {[%clk 0:02:03]} 20. Rd4 {[%clk 0:01:41]}  Rd8 {[%clk 0:01:56]} 21. O-O {[%clk 0:01:40]}  Rac8 {[%clk 0:01:16]} 22. Rg4 {[%clk 0:01:31]}  Rd3 {[%clk 0:01:04]} 23. Ne1 {[%clk 0:01:29]}  Rcd8 {[%clk 0:00:51]} 24. Nxd3 {[%clk 0:01:26]}  Rxd3 {[%clk 0:00:52]} 25. Be3 {[%clk 0:01:24]}  Qd5 {[%clk 0:00:37]} 26. Rd4 {[%clk 0:01:24]}  Rxd4 {[%clk 0:00:32]} 27. cxd4 {[%clk 0:01:25]}  Ne4 {[%clk 0:00:24]} 28. Rc1 {[%clk 0:01:10]}  Kg7 {[%clk 0:00:21]} 29. Qc7 {[%clk 0:01:07]}  Bb4 {[%clk 0:00:12]} 30. Qc6 {[%clk 0:00:55]}  Nc3 {[%clk 0:00:01]} 31. Qxd5 {[%clk 0:00:54]}  Nxd5 {[%clk 0:00:01]} 32. Rc2 {[%clk 0:00:50]}  Kf8 {[%clk 0:00:01]} 33. Kf1 {[%clk 0:00:49]}  Ke7 {[%clk 0:00:02]} 34. Bg5+ {[%clk 0:00:48]}  Kd7 {[%clk 0:00:02]} 35. Ke2 {[%clk 0:00:49]}  a5 {[%clk 0:00:02]} 36. Bd2 {[%clk 0:00:44]}  Be7 {[%clk 0:00:02]} 37. a4 {[%clk 0:00:43]}  Bb4 {[%clk 0:00:02]} 38. g3 {[%clk 0:00:42]}  Bxd2 {[%clk 0:00:02]} 39. Kxd2 {[%clk 0:00:43]}  Nb4 {[%clk 0:00:02]} 40. Rc4 {[%clk 0:00:42]}  Nc6 {[%clk 0:00:03]} 41. Kd3 {[%clk 0:00:42]}  Nb4+ {[%clk 0:00:03]} 42. Ke4 {[%clk 0:00:43]}  Nd5 {[%clk 0:00:03]} 43. f4 {[%clk 0:00:43]}  Nc7 {[%clk 0:00:03]} 44. g4 {[%clk 0:00:40]}  Nd5 {[%clk 0:00:04]} 45. f5 {[%clk 0:00:37]}  gxf5+ {[%clk 0:00:05]} 46. gxf5 {[%clk 0:00:38]}  Ne7 {[%clk 0:00:04]} 47. f6 {[%clk 0:00:37]}  Nd5 {[%clk 0:00:05]} 48. Rc1 {[%clk 0:00:37]}  Nb4 {[%clk 0:00:02]} 49. Rh1 {[%clk 0:00:36]}  Nd5 {[%clk 0:00:01]} 50. Kd3 {[%clk 0:00:36]}  Kc6 {[%clk 0:00:01]} 51. Rh7 {[%clk 0:00:36]}  b5 {[%clk 0:00:02]} 52. axb5+ {[%clk 0:00:36]}  Kxb5 {[%clk 0:00:03]} 53. Rxf7 {[%clk 0:00:36]}  a4 {[%clk 0:00:03]} 54. Ra7 {[%clk 0:00:36]} 1-0


[Site "https://www.chess.com"]

[Event "Titled Tuesday Blitz January 04 2022"]
[White "Kalashian, David"]
[Black "Yilmaz, Mustafa"]
[WhiteFideId "13302418"]
[BlackFideId "6302718"]
[WhiteElo "2490"]
[BlackElo "2568"]
[Result "0-1"]
[Round "02"]
[TimeControl "180+1"]
[Date "2022.01.04"]
[WhiteClock "0:00:02"]
[BlackClock "0:00:34"]

1. d4 {[%clk 0:03:00]}  d5 {[%clk 0:02:59]} 2. Nf3 {[%clk 0:03:00]}  Nf6 {[%clk 0:02:58]} 3. c4 {[%clk 0:02:59]}  c6 {[%clk 0:02:57]} 4. Qc2 {[%clk 0:02:59]}  g6 {[%clk 0:02:55]} 5. g3 {[%clk 0:02:58]}  Bg7 {[%clk 0:02:54]} 6. Bg2 {[%clk 0:02:58]}  O-O {[%clk 0:02:55]} 7. O-O {[%clk 0:02:59]}  Bf5 {[%clk 0:02:54]} 8. Qb3 {[%clk 0:02:59]}  Qb6 {[%clk 0:02:53]} 9. Nc3 {[%clk 0:02:59]}  dxc4 {[%clk 0:02:50]} 10. Qxc4 {[%clk 0:02:58]}  Na6 {[%clk 0:02:50]} 11. Re1 {[%clk 0:02:55]}  Be6 {[%clk 0:02:30]} 12. Qa4 {[%clk 0:02:51]}  Rfd8 {[%clk 0:02:22]} 13. e4 {[%clk 0:02:47]}  c5 {[%clk 0:02:08]} 14. d5 {[%clk 0:02:39]}  Bd7 {[%clk 0:02:08]} 15. Qd1 {[%clk 0:02:28]}  Bg4 {[%clk 0:02:07]} 16. h3 {[%clk 0:02:23]}  Bxf3 {[%clk 0:02:07]} 17. Qxf3 {[%clk 0:02:19]}  Nb4 {[%clk 0:02:05]} 18. Qe2 {[%clk 0:02:18]}  c4 {[%clk 0:02:05]} 19. Be3 {[%clk 0:02:12]}  Qa6 {[%clk 0:02:05]} 20. Red1 {[%clk 0:02:05]}  Nd7 {[%clk 0:02:01]} 21. Bd4 {[%clk 0:02:00]}  Nd3 {[%clk 0:01:51]} 22. Bxg7 {[%clk 0:01:58]}  Kxg7 {[%clk 0:01:52]} 23. b3 {[%clk 0:01:54]}  N7c5 {[%clk 0:01:45]} 24. Bf1 {[%clk 0:01:44]}  Rac8 {[%clk 0:01:40]} 25. Rab1 {[%clk 0:01:28]}  b5 {[%clk 0:01:35]} 26. bxc4 {[%clk 0:01:23]}  bxc4 {[%clk 0:01:35]} 27. Qe3 {[%clk 0:01:22]}  Qf6 {[%clk 0:01:33]} 28. Ne2 {[%clk 0:01:15]}  Nxe4 {[%clk 0:01:26]} 29. Qxe4 {[%clk 0:01:08]}  Nxf2 {[%clk 0:01:26]} 30. Qd4 {[%clk 0:00:34]}  Nxd1 {[%clk 0:01:23]} 31. Qxd1 {[%clk 0:00:34]}  c3 {[%clk 0:01:22]} 32. Rc1 {[%clk 0:00:34]}  Qe5 {[%clk 0:01:12]} 33. Bg2 {[%clk 0:00:25]}  e6 {[%clk 0:01:07]} 34. Qd3 {[%clk 0:00:21]}  exd5 {[%clk 0:00:59]} 35. Rxc3 {[%clk 0:00:20]}  Rxc3 {[%clk 0:00:57]} 36. Nxc3 {[%clk 0:00:21]}  d4 {[%clk 0:00:55]} 37. Ne4 {[%clk 0:00:19]}  f5 {[%clk 0:00:52]} 38. Ng5 {[%clk 0:00:19]}  h6 {[%clk 0:00:45]} 39. Nf3 {[%clk 0:00:15]}  Qe3+ {[%clk 0:00:42]} 40. Qxe3 {[%clk 0:00:14]}  dxe3 {[%clk 0:00:43]} 41. Kf1 {[%clk 0:00:05]}  g5 {[%clk 0:00:43]} 42. Ke2 {[%clk 0:00:02]}  f4 {[%clk 0:00:44]} 43. gxf4 {[%clk 0:00:03]}  gxf4 {[%clk 0:00:45]} 44. Ne1 {[%clk 0:00:03]}  Rd2+ {[%clk 0:00:42]} 45. Kf1 {[%clk 0:00:03]}  Kf6 {[%clk 0:00:36]} 46. a4 {[%clk 0:00:01]}  Kf5 {[%clk 0:00:36]} 47. Bf3 {[%clk 0:00:01]}  Rf2+ {[%clk 0:00:35]} 48. Kg1 {[%clk 0:00:02]}  Ra2 {[%clk 0:00:36]} 49. Bg4+ {[%clk 0:00:02]}  Ke4 {[%clk 0:00:34]} 0-1


[Site "https://www.chess.com"]